bitfinex-derivatives/quotes_SOLF0:USTF0_20250803
["timestamp","ask_amount","ask_price","bid_price","bid_amount"]
[1754198423821,117.31,160.45,160.43,3.41]
[1754198423822,3.53,160.44,160.43,3.41]
[1754198431527,3.53,160.42,160.4,3.41]
[1754198431728,3.49,160.41,160.4,3.41]
[1754198438338,113.7,160.42,160.4,9.6453]
[1754198438542,117.19,160.42,160.4,6.2353]
[1754198438845,117.19,160.42,160.41,3.31]
[1754198441333,3.49,160.44,160.41,9.5449]
[1754198441638,3.49,160.44,160.43,3.31]
[1754198445348,3.49,160.44,160.42,3.31]
[1754198445939,3.49,160.44,160.4,3.31]
[1754198446351,3.49,160.44,160.41,3.31]
[1754198446739,3.49,160.43,160.41,3.31]
[1754198448951,3.49,160.43,160.42,3.31]
[1754198458157,3.49,160.43,160.37,8.7768729]
[1754198458364,3.49,160.43,160.41,3.31]
[1754198458958,9.7242,160.43,160.41,3.31]
[1754198459163,3.49,160.42,160.41,3.31]
[1754198462758,3.5,160.44,160.37,3.21]
[1754198463355,3.5,160.4,160.37,3.21]
[1754198463561,113.66,160.41,160.37,3.21]
[1754198463760,3.5,160.4,160.37,3.21]
[1754198465167,9.7353,160.4,160.37,3.21]
[1754198465367,3.5,160.39,160.37,3.21]
[1754198465766,3.5,160.39,160.37,9.4463]
[1754198465963,117.16,160.41,160.38,5.491636]
[1754198466168,117.16,160.41,160.39,3.21]
[1754198469469,3.5,160.4,160.39,3.21]
[1754198471766,113.66,160.41,160.39,9.4456]
[1754198471966,113.66,160.41,160.4,3.21]
[1754198472167,3.5,160.42,160.4,3.21]
[1754198472563,3.5,160.42,160.41,3.21]
[1754198473470,117.16,160.44,160.42,3.21]
[1754198473968,3.5,160.43,160.42,3.21]
[1754198478374,113.66,160.44,160.43,3.21]
[1754198478777,117.16,160.44,160.43,3.21]
[1754198480178,117.16,160.44,160.43,9.4441]
[1754198480365,117.16,160.44,160.43,3.21]
[1754198481178,3.5,160.44,160.43,3.21]
[1754198482974,119.8529,160.46,160.43,3.21]
[1754198483181,3.5,160.45,160.43,3.21]
[1754198483478,119.8529,160.46,160.43,3.21]
[1754198483668,3.5,160.44,160.43,3.21]
[1754198486980,3.5,160.44,160.43,5.48952531]
[1754198494392,3.37,160.45,160.44,3.27]
[1754198494690,116.99,160.46,160.45,3.27]
[1754198494885,116.99,160.46,160.45,5.54952531]
[1754198495795,57.76552829,160.5,160.46,3.27]
[1754198495998,3.37,160.52,160.49,5.54952531]
[1754198496293,3.37,160.51,160.49,5.54952531]
[1754198496487,3.37,160.51,160.5,3.27]
[1754198500096,123.2007,160.52,160.5,3.27]
[1754198500398,123.2007,160.52,160.5,5.54952531]
[1754198500692,113.6,160.52,160.5,5.54952531]
[1754198500891,116.97,160.52,160.51,5.54952531]
[1754198501693,113.6,160.52,160.51,5.54952531]
[1754198502092,3.37,160.53,160.51,5.54952531]
[1754198502296,3.37,160.53,160.52,3.27]
[1754198504895,6.2302,160.53,160.51,5.54952531]
[1754198505098,3.37,160.52,160.49,5.54952531]
[1754198505899,3.37,160.51,160.49,5.54952531]
[1754198506802,3.37,160.51,160.49,3.27]
[1754198507102,3.37,160.51,160.5,3.27]
[1754198507793,3.37,160.55,160.5,3.27]
[1754198507996,3.37,160.54,160.51,3.55936852]
[1754198508200,3.37,160.54,160.52,3.27]
[1754198509203,3.37,160.53,160.52,3.27]
[1754198512298,116.91,160.55,160.52,3.27]
[1754198512806,3.37,160.55,160.52,3.27]
[1754198513701,3.37,160.54,160.52,3.27]
[1754198515309,3.37,160.54,160.53,3.27]
[1754198518809,3.37,160.54,160.51,9.79026852]
[1754198519000,3.37,160.54,160.52,3.27]
[1754198519307,3.37,160.54,160.53,3.27]
[1754198520809,3.37,160.53,160.48,3.27]
[1754198520996,3.37,160.53,160.49,3.27]
[1754198521395,3.37,160.53,160.5,3.27]
[1754198522105,3.37,160.53,160.51,3.53]
[1754198522505,3.28,160.52,160.51,3.53]
[1754198522807,3.28,160.52,160.48,3.53]
[1754198524210,9.5106,160.52,160.48,9.7621]
[1754198524410,3.28,160.51,160.49,3.53]
[1754198524812,3.28,160.5,160.49,3.53]
[1754198525407,6.2303,160.53,160.5,3.53]
[1754198525614,9.5103,160.53,160.5,3.53]
[1754198525806,3.28,160.52,160.5,3.53]
[1754198526515,6.2303,160.53,160.5,3.53]
[1754198526710,3.28,160.51,160.5,3.53]
[1754198527114,6.2303,160.53,160.5,3.53]
[1754198527316,3.28,160.52,160.5,3.53]
[1754198528120,3.28,160.52,160.51,3.53]
[1754198528413,3.28,160.51,160.5,3.53]
[1754198532315,3.28,160.52,160.5,3.53]
[1754198535421,6.2303,160.53,160.5,3.53]
[1754198535622,3.28,160.51,160.5,3.53]
[1754198539029,3.28,160.56,160.5,3.53]
[1754198539327,3.28,160.56,160.49,3.55936852]
[1754198539328,3.28,160.56,160.55,3.53]
[1754198540720,3.28,160.56,160.55,5.80601361]
[1754198541024,9.5091,160.56,160.55,2.27601361]
[1754198541425,3.28,160.56,160.55,2.27601361]
[1754198541832,3.28,160.56,160.55,5.80601361]
[1754198542734,3.28,160.56,160.55,3.53]
[1754198543237,3.28,160.57,160.56,3.53]
[1754198550336,113.44,160.58,160.57,3.53]
[1754198550540,3.28,160.59,160.57,3.53]
[1754198551042,3.28,160.59,160.56,6.229]
[1754198551339,3.28,160.59,160.58,3.53]
[1754198552042,3.28,160.59,160.57,3.33]
[1754198553641,3.28,160.59,160.56,6.229]
[1754198553843,3.28,160.59,160.58,3.33]
[1754198558543,3.37,160.58,160.56,3.33]
[1754198558742,3.37,160.57,160.55,3.33]
[1754198559143,3.37,160.56,160.55,3.33]
[1754198564744,3.37,160.56,160.55,5.60622783]
[1754198569854,3.37,160.57,160.56,3.33]
[1754198577352,122.9984,160.58,160.56,3.33]
[1754198578648,3.37,160.6,160.57,2.27622783]
[1754198578854,113.38,160.6,160.58,3.33]
[1754198579057,3.37,160.59,160.58,3.33]
[1754198584854,119.6076,160.6,160.58,3.3]
[1754198585056,3.25,160.59,160.57,2.27622783]
[1754198585757,3.25,160.59,160.58,3.3]
[1754198587067,122.8576,160.6,160.58,3.3]
[1754198587365,122.8576,160.6,160.59,5.57622783]
[1754198589965,9.4776,160.6,160.59,5.57622783]
[1754198591971,9.4776,160.6,160.59,3.3]
[1754198592570,3.25,160.6,160.59,3.3]
[1754198595370,3.25,160.59,160.57,2.27622783]
[1754198595573,3.25,160.58,160.56,3.3]
[1754198595769,3.25,160.57,160.55,5.57622783]
[1754198595978,5.52622783,160.58,160.54,5.57622783]
[1754198596167,3.25,160.57,160.54,5.57622783]
[1754198596366,3.25,160.55,160.54,2.27622783]
[1754198596870,3.25,160.55,160.54,5.57622783]
[1754198602370,113.32,160.56,160.54,5.57622783]
[1754198602371,113.32,160.58,160.55,3.3]
[1754198602570,113.32,160.58,160.57,5.57622783]
[1754198602571,116.57,160.58,160.57,5.57622783]
[1754198607479,116.57,160.58,160.57,3.3]
[1754198607679,116.57,160.58,160.57,5.57622783]
[1754198610987,113.32,160.58,160.57,3.3]
[1754198611186,3.25,160.59,160.58,3.3]
[1754198620098,116.86,160.6,160.58,9.5282]
[1754198620295,116.86,160.6,160.59,5.79622783]
[1754198621300,116.86,160.6,160.59,2.27622783]
[1754198622990,116.86,160.6,160.59,5.79622783]
[1754198623389,116.86,160.6,160.59,2.27622783]
[1754198623593,116.86,160.6,160.59,5.79622783]
[1754198625807,116.86,160.6,160.59,3.52]
[1754198626008,116.86,160.6,160.59,5.79622783]
[1754198631399,116.86,160.6,160.59,3.52]
[1754198631704,113.32,160.6,160.59,2.27622783]
[1754198631906,116.86,160.6,160.59,5.79622783]
[1754198636905,113.26,160.61,160.6,3.52]
[1754198637310,116.8,160.61,160.6,3.52]
[1754198640912,116.8,160.61,160.59,5.79622783]
[1754198641104,3.54,160.6,160.59,3.52]
[1754198641304,3.54,160.6,160.59,5.79622783]
[1754198659826,3.54,160.6,160.59,2.27622783]
[1754198660226,3.54,160.6,160.59,5.49622783]
[1754198664622,113.26,160.61,160.59,5.49622783]
[1754198664827,113.26,160.61,160.6,3.22]
[1754198665331,116.76,160.61,160.6,3.22]
[1754198666332,3.5,160.61,160.6,3.22]
[1754198667528,9.7256,160.65,160.6,3.22]
[1754198667831,9.7256,160.65,160.59,2.27622783]
[1754198667832,3.5,160.64,160.63,3.22]
[1754198669033,3.5,160.64,160.63,5.49622783]
[1754198674445,3.36,160.7,160.63,5.59622783]
[1754198674734,3.36,160.68,160.67,5.59622783]
[1754198677235,116.52,160.68,160.67,5.59622783]
[1754198678442,116.52,160.68,160.67,3.32]
[1754198678838,122.7444,160.68,160.67,3.32]
[1754198679039,122.7444,160.68,160.67,5.59622783]
[1754198679340,113.16,160.68,160.66,5.59622783]
[1754198679637,3.36,160.67,160.61,5.20719087]
[1754198679942,2.27622783,160.64,160.6,5.59622783]
[1754198680142,3.36,160.62,160.6,5.59622783]
[1754198680343,116.52,160.61,160.6,5.59622783]
[1754198681442,3.36,160.6,160.59,8.52719087]
[1754198681643,3.36,160.6,160.59,5.20719087]
[1754198681842,8.50372783,160.6,160.58,5.20719087]
[1754198682144,3.36,160.59,160.58,5.20719087]
[1754198682539,3.36,160.59,160.58,3.32]
[1754198682749,3.36,160.58,160.57,3.32]
[1754198683051,116.52,160.58,160.57,3.32]
[1754198685444,3.36,160.57,160.56,3.32]
[1754198689045,113.16,160.58,160.56,3.32]
[1754198689249,116.52,160.58,160.56,3.32]
[1754198691947,3.36,160.58,160.56,3.32]
[1754198692148,116.54,160.57,160.56,3.32]
[1754198694351,3.36,160.57,160.56,5.59622783]
[1754198694552,116.56,160.57,160.56,5.59622783]
[1754198694751,116.56,160.57,160.56,3.32]
[1754198696757,3.36,160.57,160.56,3.32]
[1754198697056,116.56,160.57,160.56,9.549]
[1754198697252,116.56,160.57,160.56,11.82522783]
[1754198698255,6.2276,160.6,160.57,3.32]
[1754198698452,3.36,160.58,160.57,3.32]
[1754198698755,3.36,160.58,160.56,8.50522783]
[1754198698954,113.2,160.59,160.56,8.50522783]
[1754198698955,3.36,160.57,160.56,8.50522783]
[1754198699157,3.36,160.57,160.56,11.82522783]
[1754198700256,3.36,160.57,160.56,5.59622783]
[1754198701853,3.36,160.57,160.54,6.2298]
[1754198702053,3.51,160.55,160.54,3.43]
[1754198704254,3.51,160.55,160.54,9.6598]
[1754198705458,116.71,160.56,160.55,3.43]
[1754198705653,116.71,160.56,160.55,2.27622783]
[1754198705855,116.71,160.56,160.55,5.70622783]
[1754198706955,116.71,160.56,160.55,11.93562783]
[1754198706956,3.51,160.56,160.55,11.93562783]
[1754198707161,113.2,160.56,160.55,8.50562783]
[1754198707557,113.2,160.56,160.55,11.93562783]
[1754198707959,116.71,160.56,160.55,5.70622783]
[1754198712062,3.51,160.56,160.55,11.93562783]
[1754198712260,116.71,160.56,160.55,11.93562783]
[1754198717964,3.51,160.56,160.55,11.93562783]
[1754198718167,116.71,160.56,160.55,11.93562783]
[1754198718855,113.2,160.56,160.55,11.93562783]
[1754198720366,3.51,160.58,160.57,6.2286]
[1754198720566,116.71,160.58,160.57,11.93482783]
[1754198721066,116.69,160.58,160.57,11.93482783]
[1754198721370,3.51,160.58,160.57,11.93482783]
[1754198721570,116.69,160.58,160.57,11.93482783]
[1754198722670,116.69,160.58,160.57,5.70622783]
[1754198722971,116.69,160.58,160.57,3.43]
[1754198725273,3.51,160.58,160.57,3.43]
[1754198725870,116.69,160.58,160.57,3.43]
[1754198726266,3.51,160.58,160.57,3.43]
[1754198726470,116.69,160.58,160.57,3.43]
[1754198726667,3.51,160.57,160.56,3.43]
[1754198727769,3.51,160.57,160.56,9.659]
[1754198727970,3.51,160.58,160.56,3.43]
[1754198728172,80.81284696,160.63,160.58,3.43]
[1754198728173,3.51,160.59,160.58,3.43]
[1754198728371,116.69,160.59,160.58,3.43]
[1754198729175,3.51,160.59,160.58,6.2283]
[1754198729370,116.69,160.6,160.59,3.43]
[1754198729570,116.69,160.6,160.59,5.70622783]
[1754198730274,116.69,160.6,160.59,11.93412783]
[1754198730471,3.51,160.6,160.59,11.93412783]
[1754198732572,113.18,160.6,160.59,11.93412783]
[1754198733277,116.49,160.6,160.59,11.93412783]
[1754198734177,116.47,160.6,160.59,11.93412783]
[1754198736776,418.62,160.66,160.59,2.27622783]
[1754198736777,113.16,160.61,160.59,2.27622783]
[1754198736977,113.16,160.61,160.6,2.27622783]
[1754198737482,113.16,160.61,160.6,5.71622783]
[1754198737686,113.16,160.61,160.6,11.94342783]
[1754198738979,116.47,160.61,160.6,11.94342783]
[1754198739679,6.2257,160.65,160.61,6.2268]
[1754198739983,418.62,160.66,160.62,5.71622783]
[1754198740282,116.47,160.65,160.64,5.71622783]
[1754198745297,3.31,160.65,160.64,5.71622783]
[1754198745588,116.45,160.65,160.64,5.71622783]
[1754198747095,3.31,160.67,160.65,6.2255]
[1754198747387,116.43,160.67,160.66,2.27622783]
[1754198747581,116.43,160.67,160.66,5.71622783]
[1754198747779,19.02198742,160.74,160.61,5.20719087]
[1754198747780,3.31,160.72,160.61,5.20719087]
[1754198747981,3.31,160.68,160.63,2.27622783]
[1754198748279,19.02198742,160.74,160.63,2.27622783]
[1754198748280,3.31,160.66,160.63,2.27622783]
[1754198748580,3.31,160.64,160.61,2.27622783]
[1754198748785,3.31,160.64,160.61,5.71622783]
[1754198751189,3.31,160.64,160.61,2.27622783]
[1754198751490,3.31,160.64,160.62,3.44]
[1754198752484,3.31,160.64,160.63,2.27622783]
[1754198752690,3.31,160.64,160.63,5.71622783]
[1754198753889,3.31,160.64,160.63,3.44]
[1754198754086,3.31,160.64,160.63,5.71622783]
[1754198755680,116.43,160.64,160.63,5.71622783]
[1754198756786,3.31,160.64,160.63,5.71622783]
[1754198770298,3.31,160.64,160.63,11.94252783]
[1754198771403,3.31,160.64,160.63,9.6663]
[1754198772908,3.31,160.64,160.63,3.44]
[1754198779306,116.41,160.64,160.63,3.44]
[1754198787219,116.41,160.64,160.63,9.6663]
[1754198789125,3.31,160.64,160.63,3.44]
[1754198789523,116.41,160.64,160.63,3.44]
[1754198791029,3.31,160.64,160.63,3.44]
[1754198791230,116.41,160.64,160.63,3.44]
[1754198795733,116.41,160.64,160.63,5.71622783]
[1754198798839,3.31,160.64,160.63,5.71622783]
[1754198799038,116.41,160.64,160.63,5.71622783]
[1754198800840,116.41,160.64,160.63,11.94252783]
[1754198802740,3.5,160.68,160.65,3.3]
[1754198802941,3.5,160.66,160.65,3.3]
[1754198803241,116.58,160.66,160.65,5.57622783]
[1754198804344,116.58,160.66,160.65,3.3]
[1754198804548,116.58,160.66,160.65,5.57622783]
[1754198808750,3.5,160.66,160.65,5.57622783]
[1754198808941,116.58,160.66,160.65,5.57622783]
[1754198809141,3.5,160.66,160.65,5.57622783]
[1754198809443,3.5,160.66,160.65,11.80182783]
[1754198809945,116.58,160.66,160.65,11.80182783]
[1754198810247,3.5,160.66,160.65,11.80182783]
[1754198810948,116.58,160.66,160.65,5.57622783]
[1754198811139,3.5,160.66,160.65,5.57622783]
[1754198811340,116.58,160.66,160.65,5.57622783]
[1754198813550,116.58,160.66,160.65,2.27622783]
[1754198814243,116.58,160.66,160.65,5.57622783]
[1754198814455,116.58,160.66,160.65,11.80182783]
[1754198817458,116.58,160.66,160.65,5.57622783]
[1754198817863,116.58,160.66,160.65,11.80182783]
[1754198820159,6.94203989,160.73,160.66,3.3]
[1754198820160,3.5,160.72,160.66,3.3]
[1754198820360,3.5,160.7,160.69,5.57622783]
[1754198821961,3.28,160.7,160.69,5.57622783]
[1754198824466,3.28,160.7,160.69,2.27622783]
[1754198824871,3.28,160.7,160.68,3.49]
[1754198825073,3.28,160.7,160.69,5.76622783]
[1754198827074,113.04,160.7,160.69,5.76622783]
[1754198827368,116.32,160.7,160.69,2.27622783]
[1754198828173,122.5436,160.7,160.69,5.76622783]
[1754198828470,116.32,160.7,160.69,5.76622783]
[1754198831763,116.32,160.7,160.69,3.49]
[1754198831965,116.32,160.7,160.69,5.76622783]
[1754198833176,116.32,160.7,160.69,3.49]
[1754198833376,116.32,160.7,160.69,5.76622783]
[1754198833676,113.04,160.7,160.69,5.76622783]
[1754198833869,116.32,160.7,160.69,5.76622783]
[1754198842479,116.32,160.7,160.69,3.49]
[1754198842680,116.32,160.7,160.69,5.76622783]
[1754198845184,3.28,160.7,160.69,5.76622783]
[1754198845384,116.3,160.7,160.69,5.76622783]
[1754198849380,116.3,160.7,160.67,5.76622783]
[1754198849685,3.28,160.69,160.65,3.49]
[1754198849885,3.28,160.69,160.65,5.76622783]
[1754198850185,3.28,160.69,160.63,3.49]
[1754198850389,3.28,160.67,160.63,2.27622783]
[1754198850584,3.28,160.65,160.64,3.49]
[1754198852188,3.47,160.65,160.61,3.29]
[1754198852387,3.47,160.65,160.62,2.27622783]
[1754198852586,3.47,160.65,160.63,3.29]
[1754198855089,3.47,160.65,160.64,2.27622783]
[1754198855391,3.47,160.65,160.64,5.56622783]
[1754198857593,3.47,160.65,160.64,3.29]
[1754198857895,3.47,160.65,160.64,5.56622783]
[1754198858381,2.27622783,160.69,160.65,3.29]
[1754198858586,3.47,160.67,160.65,3.29]
[1754198860297,3.47,160.67,160.66,2.27622783]
[1754198860493,3.47,160.67,160.66,3.29]
[1754198860694,3.47,160.67,160.66,5.56622783]
[1754198861196,116.49,160.68,160.66,11.79142783]
[1754198861397,3.47,160.67,160.66,2.27622783]
[1754198862097,3.47,160.67,160.66,5.56622783]
[1754198862498,3.47,160.7,160.66,2.27622783]
[1754198862700,116.49,160.7,160.69,3.29]
[1754198865996,122.7136,160.7,160.66,6.2251]
[1754198866201,3.47,160.69,160.67,5.56622783]
[1754198866402,3.47,160.69,160.68,3.29]
[1754198869402,3.47,160.69,160.68,5.56622783]
[1754198869602,113.02,160.7,160.69,3.29]
[1754198869907,3.47,160.69,160.68,8.50052783]
[1754198870494,3.47,160.69,160.68,11.79052783]
[1754198871108,3.47,160.69,160.68,5.56622783]
[1754198876308,3.47,160.69,160.68,11.79062783]
[1754198883122,113.02,160.7,160.68,11.79062783]
[1754198883317,116.38,160.7,160.69,5.49622783]
[1754198883512,113.02,160.7,160.69,5.49622783]
[1754198883715,116.38,160.7,160.69,5.49622783]
[1754198886223,113.02,160.7,160.69,5.49622783]
[1754198886418,116.38,160.7,160.69,5.49622783]
[1754198890124,116.38,160.7,160.69,11.72022783]
[1754198892928,116.38,160.7,160.69,9.444]
[1754198893126,116.38,160.7,160.69,11.72022783]
[1754198893626,6.2229,160.72,160.7,6.2233]
[1754198893627,3.36,160.72,160.7,6.2233]
[1754198893827,116.34,160.72,160.71,2.27622783]
[1754198894026,87.25649096,160.75,160.72,3.22]
[1754198894027,3.36,160.74,160.72,3.22]
[1754198894231,116.34,160.73,160.72,3.22]
[1754198894427,3.36,160.74,160.72,3.22]
[1754198894629,116.34,160.76,160.72,3.22]
[1754198894826,116.34,160.76,160.74,6.2218]
[1754198895027,116.34,160.76,160.75,3.22]
[1754198895429,116.34,160.76,160.75,5.49622783]
[1754198898933,116.34,160.76,160.75,2.27622783]
[1754198900437,116.34,160.76,160.75,5.49622783]
[1754198904735,6.2202,160.79,160.75,5.49622783]
[1754198904940,3.36,160.77,160.76,5.49622783]
[1754198908843,112.96,160.78,160.77,3.22]
[1754198909044,116.32,160.78,160.77,3.22]
[1754198911346,112.96,160.78,160.77,3.22]
[1754198911845,116.44,160.78,160.77,3.22]
[1754198912848,116.44,160.78,160.76,5.52622783]
[1754198913047,3.48,160.77,160.76,5.52622783]
[1754198913345,6.2202,160.79,160.76,2.27622783]
[1754198913551,116.42,160.77,160.76,5.52622783]
[1754198915045,116.42,160.77,160.76,2.27622783]
[1754198918452,116.42,160.77,160.76,5.52622783]
[1754198921455,3.48,160.79,160.77,3.25]
[1754198921656,112.94,160.78,160.77,3.25]
[1754198922555,112.94,160.78,160.77,6.2209]
[1754198922853,3.48,160.79,160.77,9.4709]
[1754198923052,3.48,160.79,160.76,2.27622783]
[1754198923053,3.48,160.8,160.78,8.49672783]
[1754198923254,3.48,160.8,160.79,3.25]
[1754198923462,116.42,160.8,160.79,3.25]
[1754198924161,116.42,160.8,160.79,9.4701]
[1754198924460,3.48,160.81,160.8,3.25]
[1754198924753,116.4,160.81,160.8,5.52622783]
[1754198926556,116.4,160.81,160.8,3.25]
[1754198934866,116.4,160.81,160.8,5.52622783]
[1754198937360,3.48,160.81,160.8,5.52622783]
[1754198937664,112.9,160.82,160.8,2.27622783]
[1754198937964,3.48,160.81,160.8,2.27622783]
[1754198938165,3.48,160.81,160.79,6.2201]
[1754198938469,3.48,160.81,160.8,5.52622783]
[1754198943773,3.48,160.81,160.8,3.25]
[1754198944577,3.48,160.81,160.79,5.54622783]
[1754198944773,116.25,160.8,160.79,5.54622783]
[1754198950180,112.88,160.8,160.79,5.54622783]
[1754198952888,116.25,160.8,160.79,5.54622783]
[1754198957485,116.25,160.8,160.79,3.27]
[1754198957685,116.25,160.8,160.79,5.54622783]
[1754198961395,112.88,160.8,160.79,11.76632783]
[1754198961594,3.37,160.81,160.79,8.49632783]
[1754198961797,3.37,160.81,160.8,3.27]
[1754198962299,3.37,160.81,160.79,5.54622783]
[1754198962491,3.37,160.81,160.8,3.27]
[1754198971399,119.0792,160.82,160.8,3.27]
[1754198971603,3.37,160.81,160.8,3.44]
[1754198972304,6.94203989,160.86,160.8,3.44]
[1754198972506,116.09,160.85,160.84,5.71622783]
[1754198973202,122.3078,160.85,160.84,5.71622783]
[1754198973804,116.09,160.85,160.84,5.71622783]
[1754198975808,122.3078,160.85,160.84,5.71622783]
[1754198978300,116.09,160.85,160.84,5.71622783]
[1754198978607,3.23,160.85,160.84,5.71622783]
[1754198978805,116.07,160.85,160.84,5.71622783]
[1754198979107,112.84,160.85,160.84,5.71622783]
[1754198979502,116.07,160.85,160.84,5.71622783]
[1754198980509,112.84,160.85,160.84,5.71622783]
[1754198983009,116.07,160.85,160.84,5.71622783]
[1754198984205,3.23,160.85,160.84,5.71622783]
[1754198984603,119.0571,160.87,160.84,2.27622783]
[1754198984805,3.23,160.86,160.84,5.71622783]
[1754198985412,3.23,160.86,160.85,3.44]
[1754198986109,9.4474,160.86,160.85,3.44]
[1754198987309,3.23,160.86,160.81,2.27622783]
[1754198987509,115.11622783,160.87,160.81,2.27622783]
[1754198987510,3.23,160.84,160.82,3.44]
[1754198988317,9.4482,160.84,160.82,3.44]
[1754198988616,3.23,160.83,160.82,3.44]
[1754198991307,116.05,160.86,160.83,3.44]
[1754198991615,3.23,160.85,160.83,5.71622783]
[1754198992611,9.4481,160.85,160.83,5.71622783]
[1754198992810,3.23,160.84,160.83,5.71622783]
[1754198994414,3.23,160.83,160.81,5.71622783]
[1754198994717,3.23,160.82,160.81,5.71622783]
[1754198996412,3.23,160.82,160.75,5.19286852]
[1754198996721,3.23,160.77,160.73,2.27622783]
[1754198996920,112.86,160.76,160.7,5.19286852]
[1754198997111,3.23,160.75,160.71,3.44]
[1754198997312,3.23,160.75,160.7,2.27622783]
[1754198997313,3.23,160.75,160.7,5.71622783]
[1754198997609,3.23,160.73,160.71,3.44]
[1754198997809,3.23,160.73,160.72,3.44]
[1754198998012,3.23,160.73,160.71,3.44]
[1754198998313,3.23,160.72,160.71,3.44]
[1754199001916,3.23,160.72,160.7,3.37]
[1754199002617,3.48,160.7,160.67,93.00407449]
[1754199002815,3.48,160.68,160.67,3.37]
[1754199003014,113.28,160.7,160.67,3.37]
[1754199003320,3.48,160.69,160.68,3.37]
[1754199004021,113.28,160.7,160.68,9.5943]
[1754199004322,113.28,160.7,160.69,3.37]
[1754199005921,116.76,160.7,160.69,3.37]
[1754199006324,3.48,160.69,160.68,3.37]
[1754199012115,3.48,160.69,160.66,3.37]
[1754199014717,3.48,160.68,160.67,3.37]
[1754199016318,3.48,160.68,160.66,6.2249]
[1754199016523,3.48,160.68,160.67,3.37]
[1754199017328,3.48,160.68,160.67,9.5948]
[1754199017820,113.28,160.7,160.68,3.37]
[1754199018026,3.48,160.69,160.68,3.37]
[1754199018725,116.76,160.7,160.69,3.37]
[1754199021130,113.28,160.7,160.67,6.2247]
[1754199021333,3.48,160.69,160.67,6.2247]
[1754199021526,3.48,160.68,160.67,6.2247]
[1754199021933,3.48,160.68,160.67,9.5947]
[1754199022133,3.48,160.69,160.68,9.5944]
[1754199022931,116.76,160.7,160.69,3.37]
[1754199030440,116.76,160.7,160.69,9.594]
[1754199032345,113.28,160.7,160.69,9.594]
[1754199032541,3.42,160.71,160.7,6.2236]
[1754199032837,3.42,160.71,160.7,9.5736]
[1754199033744,3.42,160.71,160.7,3.35]
[1754199038351,116.6,160.72,160.7,9.5735]
[1754199038543,116.6,160.72,160.71,3.35]
[1754199043254,113.18,160.72,160.7,3.35]
[1754199043446,3.42,160.71,160.7,3.35]
[1754199044051,3.42,160.71,160.68,7.46521642]
[1754199044052,3.42,160.71,160.68,8.4966479]
[1754199044258,3.42,160.71,160.69,3.35]
[1754199046751,3.42,160.71,160.7,3.35]